Workbook

Sheet Startseite
C1: Liquiditätsplanung
C5: Susanne Kowalski | H5: 2021
C7: Liquiditätsplanung
D13: Allgemein | F13: Einnahmen | I13: Ausgaben | L13: Übersicht
D16: >>Definitionen | F16: >> Lieferung und Leistung | I16: >> Personal | L16: >>Liquiditätsplan
D18: >> Kredite | F18: >> Vermietung und Verpachtung | I18: >> Material | L18: >> Finanzielle Mobilität
D20: >> Neutraler Bereich | F20: >> Veräußerung von Sachvermögen | I20: >> Investitionen
F22: >> Sonstiges | I22: >> Sonstiges

Sheet So bedienen Sie das Tool (hidden)
A1: So bedienen Sie das Tool
N5: Start
D55: zurück zum Anfang dieser Seite

Sheet Definitionen
A1: Definitionen
A3: Produkte / Leistungen | C3: Ausgabenrubriken | E3: Banken | G3: Anfangsbestand
A5: Produktgruppe 1 | C5: Verwaltung | E5: Bank 1 | G5: 34000
A6: Produktgruppe 2 | C6: Mieten / Pachten / Leasing
A7: Produktgruppe 3 | C7: Fuhrpark
A8: Produktgruppe 4 | C8: Versicherungen
A9: Produktgruppe 5 | C9: Steuern und Abgaben
A10: Produktgruppe 6 | C10: Personal
A11: Produktgruppe 7 | C11: Material
A12: Produktgruppe 8 | C12: Investitionen | E12: Kassenbestand
A13: Produktgruppe 9 | C13: Finanzierung
A14: Produktgruppe 10 | C14: Weitere Ausgaben
A15: Produktgruppe 11 | C15: Ausgaben Neutraler Bereich
A16: Produktgruppe 12
A17: Produktgruppe 13
A18: Produktgruppe 14
A19: Produktgruppe 15
A20: Produktgruppe 16
A21: Produktgruppe 17
A22: Produktgruppe 18
A23: Produktgruppe 19
A24: Produktgruppe 20
A25: Produktgruppe 21
A26: Produktgruppe 22
A27: Produktgruppe 23
A28: Produktgruppe 24
A29: Produktgruppe 25
A30: Produktgruppe 26
A31: Produktgruppe 27
A32: Produktgruppe 28
A33: Produktgruppe 29
A34: Produktgruppe 30
A37: Start

Sheet Kredite
A1: Kreditplaner | O1: Start
B2: Ausgaben für Zinsen und Tilgung
A3: Aufgenommene Kredite / Darlehen | B3: Januar | C3: Februar | D3: März | E3: April | F3: Mai | G3: Juni | H3: Juli | I3: August | J3: September | K3: Oktober | L3: November | M3: Dezember | N3: ="Gesamt "&Startseite!H5 -> Gesamt 2021
A4: KFW | B4: 4000 | C4: 4000 | D4: 4000 | E4: 4000 | F4: 4000 | G4: 4000 | H4: 4000 | I4: 4000 | J4: 4000 | K4: 4000 | L4: 4000 | M4: 4000 | N4: =SUM(B4:M4) -> 48000
N5: =SUM(B5:M5) -> 0
N6: =SUM(B6:M6) -> 0
N7: =SUM(B7:M7) -> 0
N8: =SUM(B8:M8) -> 0
N9: =SUM(B9:M9) -> 0
N10: 0
N11: 0
N12: 0
N13: 0
A14: Ausgaben Kredite / Gesamt | B14: =SUM(B4:B13) -> 4000 | C14: =SUM(C4:C13) -> 4000 | D14: 4000 | E14: 4000 | F14: 4000 | G14: 4000 | H14: 4000 | I14: 4000 | J14: 4000 | K14: 4000 | L14: 4000 | M14: 4000 | N14: 48000
B16: Einnahmen durch Kreditaufnahme
A17: Geplante Kredite
N18: =SUM(B18:M18) -> 0
N19: 0
N20: 0
N21: 0
N22: 0
N23: 0
N24: 0
N25: 0
N26: 0
N27: 0
A28: Einnahmen Kredite Gesamt | B28: =SUM(B18:B27) -> 0 | C28: =SUM(C18:C27) -> 0 | D28: 0 | E28: 0 | F28: 0 | G28: 0 | H28: 0 | I28: 0 | J28: 0 | K28: 0 | L28: 0 | M28: 0 | N28: 0

Sheet NeutralerBereich
A1: Neutraler Bereich | N1: Start
A3: Einnahmen, gesamt | B3: =#REF! -> 
A4: Ausgaben, gesamt
B5: Januar | C5: Februar | D5: März | E5: April | F5: Mai | G5: Juni | H5: Juli | I5: August | J5: September | K5: Oktober | L5: November | M5: Dezember
A6: Einnahmen
A17: Summe Einnahmen | B17: =SUM(B7:B16) -> 0 | C17: =SUM(C7:C16) -> 0 | D17: 0 | E17: 0 | F17: 0 | G17: 0 | H17: 0 | I17: 0 | J17: 0 | K17: 0 | L17: 0 | M17: 0
A18: Ausgaben
A29: Summe Ausgaben | B29: =SUM(B19:B28) -> 0 | C29: 0 | D29: 0 | E29: 0 | F29: 0 | G29: 0 | H29: 0 | I29: 0 | J29: 0 | K29: 0 | L29: 0 | M29: 0
A30: Saldo | B30: =+B17-B29 -> 0 | C30: =+C17-C29 -> 0 | D30: 0 | E30: 0 | F30: 0 | G30: 0 | H30: 0 | I30: 0 | J30: 0 | K30: 0 | L30: 0 | M30: 0

Sheet Liquiditätsplan
A1: Liquiditätsplan | N1: Start
A3: Zeitintervall in Monaten | B3: Januar | C3: Februar | D3: März | E3: April | F3: Mai | G3: Juni | H3: Juli | I3: August | J3: September | K3: Oktober | L3: November | M3: Dezember
A4: Anfangsbestand | B4: =B12 -> 34000 | C4: =B35 -> 42000 | D4: 44000 | E4: 43000 | F4: 45000 | G4: 35000 | H4: 37000 | I4: 41000 | J4: 43000 | K4: 41000 | L4: 43000 | M4: 50000
A6: Kasse | B6: =Definitionen!G12 -> 0
A7: =Definitionen!E5 -> Bank 1 | B7: =Definitionen!G5 -> 34000
A8: =Definitionen!E6 -> 0 | B8: =Definitionen!G6 -> 0
A9: =Definitionen!E7 -> 0 | B9: =Definitionen!G7 -> 0
A10: =Definitionen!E8 -> 0 | B10: =Definitionen!G8 -> 0
A11: =Definitionen!E9 -> 0 | B11: =Definitionen!G9 -> 0
B12: =SUM(B6:B11) -> 34000
A13: Einzahlungen
A14: Einnahmen aus Lieferung und Leistung | B14: =Lieferung_Leistung!F44 -> 25000 | C14: =Lieferung_Leistung!G44 -> 19000 | D14: =Lieferung_Leistung!H44 -> 16000 | E14: =Lieferung_Leistung!I44 -> 19000 | F14: =Lieferung_Leistung!J44 -> 17000 | G14: =Lieferung_Leistung!K44 -> 19000 | H14: =Lieferung_Leistung!L44 -> 21000 | I14: =Lieferung_Leistung!M44 -> 19000 | J14: =Lieferung_Leistung!N44 -> 15000 | K14: =Lieferung_Leistung!O44 -> 19000 | L14: =Lieferung_Leistung!P44 -> 19000 | M14: =Lieferung_Leistung!Q44 -> 19000
A15: Einnahmen aus Vermietung und Verpachtung | B15: =Vermietung_Verpachtung!B19 -> 1000 | C15: =Vermietung_Verpachtung!C19 -> 1000 | D15: =Vermietung_Verpachtung!D19 -> 1000 | E15: =Vermietung_Verpachtung!E19 -> 1000 | F15: =Vermietung_Verpachtung!F19 -> 1000 | G15: =Vermietung_Verpachtung!G19 -> 1000 | H15: =Vermietung_Verpachtung!H19 -> 1000 | I15: =Vermietung_Verpachtung!I19 -> 1000 | J15: =Vermietung_Verpachtung!J19 -> 1000 | K15: =Vermietung_Verpachtung!K19 -> 1000 | L15: =Vermietung_Verpachtung!L19 -> 1000 | M15: =Vermietung_Verpachtung!M19 -> 1000
A16: Veräußerung von Sachvermögen | B16: =Sachvermögen!B19 -> 0 | C16: =Sachvermögen!C19 -> 0 | D16: =Sachvermögen!D19 -> 0 | E16: =Sachvermögen!E19 -> 0 | F16: =Sachvermögen!F19 -> 0 | G16: =Sachvermögen!G19 -> 0 | H16: =Sachvermögen!H19 -> 0 | I16: =Sachvermögen!I19 -> 0 | J16: =Sachvermögen!J19 -> 0 | K16: =Sachvermögen!K19 -> 0 | L16: =Sachvermögen!L19 -> 5000 | M16: =Sachvermögen!M19 -> 0
A17: Kreditaufnahme | B17: =Kredite!B28 -> 0 | C17: =Kredite!C28 -> 0 | D17: =Kredite!D28 -> 0 | E17: =Kredite!E28 -> 0 | F17: =Kredite!F28 -> 0 | G17: =Kredite!G28 -> 0 | H17: =Kredite!H28 -> 0 | I17: =Kredite!I28 -> 0 | J17: =Kredite!J28 -> 0 | K17: =Kredite!K28 -> 0 | L17: =Kredite!L28 -> 0 | M17: =Kredite!M28 -> 0
A18: Sonstige Einnahmen | B18: =SonstigeEinnahmen!B40 -> 0 | C18: =SonstigeEinnahmen!C40 -> 0 | D18: =SonstigeEinnahmen!D40 -> 0 | E18: =SonstigeEinnahmen!E40 -> 0 | F18: =SonstigeEinnahmen!F40 -> 0 | G18: =SonstigeEinnahmen!G40 -> 0 | H18: =SonstigeEinnahmen!H40 -> 0 | I18: =SonstigeEinnahmen!I40 -> 0 | J18: =SonstigeEinnahmen!J40 -> 0 | K18: =SonstigeEinnahmen!K40 -> 0 | L18: =SonstigeEinnahmen!L40 -> 0 | M18: =SonstigeEinnahmen!M40 -> 0
A19: Neutraler Bereich | B19: =NeutralerBereich!B17 -> 0 | C19: =NeutralerBereich!C17 -> 0 | D19: =NeutralerBereich!D17 -> 0 | E19: =NeutralerBereich!E17 -> 0 | F19: =NeutralerBereich!F17 -> 0 | G19: =NeutralerBereich!G17 -> 0 | H19: =NeutralerBereich!H17 -> 0 | I19: =NeutralerBereich!I17 -> 0 | J19: =NeutralerBereich!J17 -> 0 | K19: =NeutralerBereich!K17 -> 0 | L19: =NeutralerBereich!L17 -> 0 | M19: =NeutralerBereich!M17 -> 0
A20: Summe Einzahlungen | B20: =SUM(B14:B18) -> 26000 | C20: 20000 | D20: 17000 | E20: 20000 | F20: 18000 | G20: 20000 | H20: 22000 | I20: 20000 | J20: 16000 | K20: 20000 | L20: 25000 | M20: 20000
A21: Ausgaben
A22: Personal | B22: =Personal!B50 -> 14000 | C22: =Personal!C50 -> 14000 | D22: =Personal!D50 -> 14000 | E22: =Personal!E50 -> 14000 | F22: =Personal!F50 -> 14000 | G22: =Personal!G50 -> 14000 | H22: =Personal!H50 -> 14000 | I22: =Personal!I50 -> 14000 | J22: =Personal!J50 -> 14000 | K22: =Personal!K50 -> 14000 | L22: =Personal!L50 -> 14000 | M22: =Personal!M50 -> 14000
A23: Material | B23: =Material!B52 -> 0 | C23: =Material!C52 -> 0 | D23: =Material!D52 -> 0 | E23: =Material!E52 -> 0 | F23: =Material!F52 -> 0 | G23: =Material!G52 -> 0 | H23: =Material!H52 -> 0 | I23: =Material!I52 -> 0 | J23: =Material!J52 -> 0 | K23: =Material!K52 -> 0 | L23: =Material!L52 -> 0 | M23: =Material!M52 -> 0
A24: =Definitionen!C5 -> Verwaltung | B24: =Ausgaben!B9 -> 0 | C24: =Ausgaben!C9 -> 0 | D24: =Ausgaben!D9 -> 0 | E24: =Ausgaben!E9 -> 0 | F24: =Ausgaben!F9 -> 0 | G24: =Ausgaben!G9 -> 0 | H24: =Ausgaben!H9 -> 0 | I24: =Ausgaben!I9 -> 0 | J24: =Ausgaben!J9 -> 0 | K24: =Ausgaben!K9 -> 0 | L24: =Ausgaben!L9 -> 0 | M24: =Ausgaben!M9 -> 0
A25: =Definitionen!C6 -> Mieten / Pachten / Leasing | B25: =Ausgaben!B16 -> 0 | C25: =Ausgaben!C16 -> 0 | D25: =Ausgaben!D16 -> 0 | E25: =Ausgaben!E16 -> 0 | F25: =Ausgaben!F16 -> 0 | G25: =Ausgaben!G16 -> 0 | H25: =Ausgaben!H16 -> 0 | I25: =Ausgaben!I16 -> 0 | J25: =Ausgaben!J16 -> 0 | K25: =Ausgaben!K16 -> 0 | L25: =Ausgaben!L16 -> 0 | M25: =Ausgaben!M16 -> 0
A26: =Definitionen!C7 -> Fuhrpark | B26: =Ausgaben!B23 -> 0 | C26: =Ausgaben!C23 -> 0 | D26: =Ausgaben!D23 -> 0 | E26: =Ausgaben!E23 -> 0 | F26: =Ausgaben!F23 -> 0 | G26: =Ausgaben!G23 -> 0 | H26: =Ausgaben!H23 -> 0 | I26: =Ausgaben!I23 -> 0 | J26: =Ausgaben!J23 -> 0 | K26: =Ausgaben!K23 -> 0 | L26: =Ausgaben!L23 -> 0 | M26: =Ausgaben!M23 -> 0
A27: =Definitionen!C8 -> Versicherungen | B27: =Ausgaben!B30 -> 0 | C27: =Ausgaben!C30 -> 0 | D27: =Ausgaben!D30 -> 0 | E27: =Ausgaben!E30 -> 0 | F27: =Ausgaben!F30 -> 0 | G27: =Ausgaben!G30 -> 0 | H27: =Ausgaben!H30 -> 0 | I27: =Ausgaben!I30 -> 0 | J27: =Ausgaben!J30 -> 0 | K27: =Ausgaben!K30 -> 0 | L27: =Ausgaben!L30 -> 0 | M27: =Ausgaben!M30 -> 0
A28: =Definitionen!C9 -> Steuern und Abgaben | B28: =Ausgaben!B37 -> 0 | C28: =Ausgaben!C37 -> 0 | D28: =Ausgaben!D37 -> 0 | E28: =Ausgaben!E37 -> 0 | F28: =Ausgaben!F37 -> 0 | G28: =Ausgaben!G37 -> 0 | H28: =Ausgaben!H37 -> 0 | I28: =Ausgaben!I37 -> 0 | J28: =Ausgaben!J37 -> 0 | K28: =Ausgaben!K37 -> 0 | L28: =Ausgaben!L37 -> 0 | M28: =Ausgaben!M37 -> 0
A29: Investitionen | B29: =Investitionsplan!B40 -> 0 | C29: =Investitionsplan!C40 -> 0 | D29: =Investitionsplan!D40 -> 0 | E29: =Investitionsplan!E40 -> 0 | F29: =Investitionsplan!F40 -> 10000 | G29: =Investitionsplan!G40 -> 0 | H29: =Investitionsplan!H40 -> 0 | I29: =Investitionsplan!I40 -> 0 | J29: =Investitionsplan!J40 -> 0 | K29: =Investitionsplan!K40 -> 0 | L29: =Investitionsplan!L40 -> 0 | M29: =Investitionsplan!M40 -> 0
A30: Finanzierung | B30: =Kredite!B14 -> 4000 | C30: =Kredite!C14 -> 4000 | D30: =Kredite!D14 -> 4000 | E30: =Kredite!E14 -> 4000 | F30: =Kredite!F14 -> 4000 | G30: =Kredite!G14 -> 4000 | H30: =Kredite!H14 -> 4000 | I30: =Kredite!I14 -> 4000 | J30: =Kredite!J14 -> 4000 | K30: =Kredite!K14 -> 4000 | L30: =Kredite!L14 -> 4000 | M30: =Kredite!M14 -> 4000
A31: Sonstige Ausgaben | B31: =Ausgaben!B49 -> 0 | C31: =Ausgaben!C49 -> 0 | D31: =Ausgaben!D49 -> 0 | E31: =Ausgaben!E49 -> 0 | F31: =Ausgaben!F49 -> 0 | G31: =Ausgaben!G49 -> 0 | H31: =Ausgaben!H49 -> 0 | I31: =Ausgaben!I49 -> 0 | J31: =Ausgaben!J49 -> 0 | K31: =Ausgaben!K49 -> 0 | L31: =Ausgaben!L49 -> 0 | M31: =Ausgaben!M49 -> 0
A32: Neutraler Bereich | B32: =NeutralerBereich!B29 -> 0 | C32: =NeutralerBereich!C29 -> 0 | D32: =NeutralerBereich!D29 -> 0 | E32: =NeutralerBereich!E29 -> 0 | F32: =NeutralerBereich!F29 -> 0 | G32: =NeutralerBereich!G29 -> 0 | H32: =NeutralerBereich!H29 -> 0 | I32: =NeutralerBereich!I29 -> 0 | J32: =NeutralerBereich!J29 -> 0 | K32: =NeutralerBereich!K29 -> 0 | L32: =NeutralerBereich!L29 -> 0 | M32: =NeutralerBereich!M29 -> 0
A33: Summe Ausgaben | B33: =SUM(B22:B31) -> 18000 | C33: 18000 | D33: 18000 | E33: 18000 | F33: 28000 | G33: 18000 | H33: 18000 | I33: 18000 | J33: 18000 | K33: 18000 | L33: 18000 | M33: 18000
A35: Endbestand | B35: =+B4+B20-B33 -> 42000 | C35: =B35+C20-C33 -> 44000 | D35: =+D4+D20-D33 -> 43000 | E35: 45000 | F35: 35000 | G35: 37000 | H35: 41000 | I35: 43000 | J35: 41000 | K35: 43000 | L35: 50000 | M35: 52000
B51: Januar | C51: Februar | D51: März | E51: April | F51: Mai | G51: Juni | H51: Juli | I51: August | J51: September | K51: Oktober | L51: November | M51: Dezember
A52: Einzahlungen | B52: =B20 -> 26000 | C52: =C20 -> 20000 | D52: 17000 | E52: 20000 | F52: 18000 | G52: 20000 | H52: 22000 | I52: 20000 | J52: 16000 | K52: 20000 | L52: 25000 | M52: 20000
A53: Auszahlungen | B53: =B33 -> 18000 | C53: =C33 -> 18000 | D53: 18000 | E53: 18000 | F53: 28000 | G53: 18000 | H53: 18000 | I53: 18000 | J53: 18000 | K53: 18000 | L53: 18000 | M53: 18000
A54: Saldo unter Berücksichtigung der Anfangsbestände | B54: =B35 -> 42000 | C54: =C35 -> 44000 | D54: 43000 | E54: 45000 | F54: 35000 | G54: 37000 | H54: 41000 | I54: 43000 | J54: 41000 | K54: 43000 | L54: 50000 | M54: 52000

Sheet Anwenderhilfe für Excel (hidden)
B1: Anwenderhilfe für Excel
F18: Die Funktionen
F20: Navigation
F21: Kopf- und Fußzeile bearbeiten
F22: Vollbild
F23: Normalansicht
F24: Blattregister/Blätter einfügen
F25: Zeilen- und Spaltenköpfe
F26: Gitternetz
F27: Blattschutz/Anpassen der Lösung
B30: Navigation
B31: Über den Befehl Haufe Mediengruppe ® Navigation rufen Sie eine Liste mit den verfügbaren Tabellen im Dokument auf.
B32: So können Sie von jeder beliebigen Position in der Arbeitsmappe auf ein anderes Tabellenblatt wechseln.
B33: Alternativ dazu können Sie über diese Schaltfläche zurück zur Startseite springen und dort das
B34: Listenfeld nutzen. Außerdem können Sie bei eingeblendetem Blattregister den Reiter der jeweiligen Tabelle anklicken.
B36: Kopf- und Fußzeile bearbeiten
B37: Über diesen Menübefehl rufen Sie einen Dialog auf, in dem Sie Ihre Kopf- und Fußzeilen einstellen können.
B38: Der folgende Dialog bietet Ihnen Funktionen, die Sie über die Excel-Standardfunktion Kopf-/Fußzeile im
B39: Menü Datei ® Seite einrichten nicht einstellen können.
B62: Mit einem Klick auf die Schaltfläche Dokumenteigenschaften eintragen (Abb. links oben) können Sie vorab
B63: Ihre Dokumenteigenschaften füllen, die dann als Grundlage für die Kopf- und Fußzeileneinträge dienen.
B65: Für die Festlegung der Kopf- und Fußzeileneinträge stehen Ihnen zwei Register zur Verfügung.
B66: Aktivieren Sie das gewünschte Positionskontrollkästchen und legen Sie über eine Optionsschaltfläche
B67: fest, welchen Eintrag Sie in der Kopf- oder Fußzeile haben möchten.
B68: Sie haben die Möglichkeit, die Kopf- und Fußzeilendefinitionen für die aktive Tabelle bzw. für
B69: alle Tabellen der aktiven Arbeitsmappe einzufügen.
B70: Über das Kontrollkästchen links unten im Dialog können Sie nach dem Einrichten der Kopf- und Fußzeilen
B71: direkt in die Seitenansicht wechseln, um die Ergebnisse zu kontrollieren.
B72: Über die Schaltfläche Initialisieren löschen Sie alle Kopf- und Fußzeileneinträge der aktiven
B73: Tabelle bzw. aller Tabellen der aktiven Arbeitsmappe.
B75: Vollbild
B76: Über diesen Menübefehl stellen Sie die Vollbildansicht von Excel ein. Bei dieser Ansicht werden
B77: alle Symbolleisten temporär ausgeblendet. Drücken Sie die Taste ESC, um diese Vollbildansicht
B78: zu beenden.
B80: Normalansicht
B81: Über diesen Menübefehl stellen Sie die Normalansicht von Excel ein.
B83: Blattregister/Blätter einfügen
B84: Mit Hilfe dieses Menübefehls können Sie die Anzeige der Blattregister ein- und ausschalten.
B85: Wenn Sie neue Blätter einfügen möchten, können Sie dies mit Hilfe der Schaltfläche Tabellen
B86: einfügen auf der Startseite erledigen; Sie können mehrere Blätter gleichzeitig einfügen und
B87: die gewünschte Anzahl mit Hilfe des Drehfelds vorgeben.
B89: Zeilen- und Spaltenköpfe
B90: Mit Hilfe dieses Menübefehls können Sie die Anzeige der Zeilen- und Spaltenköpfe ein- und
B91: ausschalten. Dabei wird bei jedem Tabellenwechsel geprüft, wie der momentane Status der
B92: Zeilen- und Spaltenköpfe ist. Dementsprechend wird das Häkchen vor dem Menübefehl
B93: gesetzt oder weggenommen.
B95: Gitternetz
B96: Mit Hilfe dieses Menübefehls können Sie die Anzeige des Gitternetzes ein- und ausschalten.
B97: Dabei wird bei jedem Tabellenwechsel geprüft, wie der momentane Status des Gitternetzes ist.
B98: Dementsprechend wird das Häkchen vor dem Menübefehl gesetzt oder weggenommen.
B100: Blattschutz/Anpassen der Lösung
B101: Um Textfelder und Grafikobjekte vor dem Löschen oder Verschieben zu schützen, sind die Haufe-Businesslösungen
B102: zum Teil mit einem Objektschutz versehen. Die vorgegebenen Inhalte der Zellen und Textfelder sowie die Formatierungen
B103: können Sie jedoch an Ihre Erfordernisse anpassen. Heben Sie den Blattschutz über Extras ® Schutz ® Blattschutz auf.
B104: Alternativ dazu können Sie im Haufe-Menü den Befehl Blattschutz Tabelle schützen/Tabelle entsperren wählen.
B106: Weitere Hinweise zu den Besonderheiten der jeweiligen Lösung entnehmen Sie dem Blatt So bedienen Sie das Tool.
E108: zurück zum Anfang dieser Seite

Sheet FinanzielleMobilität
A1: Finanzielle Mobilität | C1: Start
B3: Zu Beginn des Planjahres | C3: Am Ende des Planjahres
A4: Freie Liquiditätsreserven
A5: Zahlungskraftreserven
A6: Kasse und Bankguthaben
A7: Nicht ausgenutzte Kreditlinien
A8: Summe frei Liquiditätsreserven | B8: =SUM(B5:B7) -> 0 | C8: =SUM(C5:C7) -> 0
A9: Kurzfristige Vermögensreserven
A10: Terminausleihungen
A11: Wertpapiere
A12: Summe kurzfristige Vermögensreserven | B12: =SUM(B10:B11) -> 0 | C12: =SUM(C10:C11) -> 0
A13: Finanzierungsreserven
A14: Nicht ausgenutztes Verschuldungspotential
A15: Kapitalerhöhungsreserven
A16: Summe Finanzierungsreserven | B16: =SUM(B14:B15) -> 0 | C16: =SUM(C14:C15) -> 0
A17: Summe frei Liquiditätsreserven | B17: =+B8+B12+B16 -> 0 | C17: =+C8+C12+C16 -> 0
A18: Abbau des working capital
A19: Vorräte
A20: Debitoren
A21: Zunahme Kreditoren
A22: Summe Einsparung aus working capital | B22: =SUM(B19:B21) -> 0 | C22: =SUM(C19:C21) -> 0
A23: Gemeinkostenreduzierung
A24: Marketing
A25: Administration
A26: Forschung und Entwicklung
A27: Summe Gemeinkostenreduzierung | B27: =SUM(B24:B26) -> 0 | C27: =SUM(C24:C26) -> 0
A28: Kürzung von Analgeinvestitionene und Dividenden
A29: Anlageinvestitionen
A30: Divdienden
A31: Summe: Kürzung von Anlageinvestitionen + Dividenden | B31: =SUM(B29:B30) -> 0 | C31: =SUM(C29:C30) -> 0
A32: Liquidation von Anlagevermögen
A33: Sachanlagen
A34: Finanzanlagen
A35: Summe: Liquidation von Anlagevermögen | B35: =SUM(B33:B34) -> 0 | C35: =SUM(C33:C34) -> 0
A36: Gesamte Möglichkeit zur Abdeckung potentieller Liquiditätsengpässe | B36: =+B17+B22+B27+B31+B35 -> 0 | C36: =+C17+C22+C27+C31+C35 -> 0

Sheet Lieferung_Leistung
A1: Lieferung und Leistung | R1: Start
A4: Durchschnittlicher Geldeingang nach Lieferung | J4: 1
A8: Produktgruppe / Leistung | B8: Termine | F8: Januar | G8: Februar | H8: März | I8: April | J8: Mai | K8: Juni | L8: Juli | M8: August | N8: September | O8: Oktober | P8: November | Q8: Dezember
F9: =SUM(#REF!) -> 
A10: =Definitionen!A5 -> Produktgruppe 1 | B10: =IF(#REF!="jährlich",1,IF(#REF!="halbjährlich",2,IF(#REF!="vierteljährlich",4,12))) ->  | C10: =IF(OR($B10=1,$B10=12),0,IF($B10=2,#REF!+6,IF($B10=4,#REF!+3))) ->  | D10: =IF(OR($B10=1,$B10=2,$B10=12),0,IF($B10=4,C10+3)) ->  | F10: 3000 | G10: 3000 | H10: 3000 | I10: 3000 | J10: 3000 | K10: 3000 | L10: 3000 | M10: 3000 | N10: 3000 | O10: 3000 | P10: 3000 | Q10: 3000
A11: =Definitionen!A6 -> Produktgruppe 2 | B11: =IF(#REF!="jährlich",1,IF(#REF!="halbjährlich",2,IF(#REF!="vierteljährlich",4,12))) ->  | C11: =IF(OR($B11=1,$B11=12),0,IF($B11=2,#REF!+6,IF($B11=4,#REF!+3))) ->  | F11: 16000 | G11: 16000 | H11: 13000 | I11: 16000 | J11: 14000 | K11: 16000 | L11: 18000 | M11: 16000 | N11: 12000 | O11: 16000 | P11: 16000 | Q11: 16000
A12: =Definitionen!A7 -> Produktgruppe 3 | B12: =IF(#REF!="jährlich",1,IF(#REF!="halbjährlich",2,IF(#REF!="vierteljährlich",4,12))) ->  | C12: =IF(OR($B12=1,$B12=12),0,IF($B12=2,#REF!+6,IF($B12=4,#REF!+3))) -> 
A13: =Definitionen!A8 -> Produktgruppe 4 | B13: =IF(#REF!="jährlich",1,IF(#REF!="halbjährlich",2,IF(#REF!="vierteljährlich",4,12))) ->  | C13: =IF(OR($B13=1,$B13=12),0,IF($B13=2,#REF!+6,IF($B13=4,#REF!+3))) -> 
A14: =Definitionen!A9 -> Produktgruppe 5 | B14: =IF(#REF!="jährlich",1,IF(#REF!="halbjährlich",2,IF(#REF!="vierteljährlich",4,12))) ->  | C14: =IF(OR($B14=1,$B14=12),0,IF($B14=2,#REF!+6,IF($B14=4,#REF!+3))) -> 
A15: =Definitionen!A10 -> Produktgruppe 6 | B15: =IF(#REF!="jährlich",1,IF(#REF!="halbjährlich",2,IF(#REF!="vierteljährlich",4,12))) ->  | C15: =IF(OR($B15=1,$B15=12),0,IF($B15=2,#REF!+6,IF($B15=4,#REF!+3))) -> 
A16: =Definitionen!A11 -> Produktgruppe 7 | B16: =IF(#REF!="jährlich",1,IF(#REF!="halbjährlich",2,IF(#REF!="vierteljährlich",4,12))) ->  | C16: =IF(OR($B16=1,$B16=12),0,IF($B16=2,#REF!+6,IF($B16=4,#REF!+3))) -> 
A17: =Definitionen!A12 -> Produktgruppe 8 | B17: =IF(#REF!="jährlich",1,IF(#REF!="halbjährlich",2,IF(#REF!="vierteljährlich",4,12))) ->  | C17: =IF(OR($B17=1,$B17=12),0,IF($B17=2,#REF!+6,IF($B17=4,#REF!+3))) -> 
A18: =Definitionen!A13 -> Produktgruppe 9 | B18: =IF(#REF!="jährlich",1,IF(#REF!="halbjährlich",2,IF(#REF!="vierteljährlich",4,12))) ->  | C18: =IF(OR($B18=1,$B18=12),0,IF($B18=2,#REF!+6,IF($B18=4,#REF!+3))) -> 
A19: =Definitionen!A14 -> Produktgruppe 10 | B19: =IF(#REF!="jährlich",1,IF(#REF!="halbjährlich",2,IF(#REF!="vierteljährlich",4,12))) ->  | C19: =IF(OR($B19=1,$B19=12),0,IF($B19=2,#REF!+6,IF($B19=4,#REF!+3))) -> 
A20: =Definitionen!A15 -> Produktgruppe 11 | B20: =IF(#REF!="jährlich",1,IF(#REF!="halbjährlich",2,IF(#REF!="vierteljährlich",4,12))) ->  | C20: =IF(OR($B20=1,$B20=12),0,IF($B20=2,#REF!+6,IF($B20=4,#REF!+3))) -> 
A21: =Definitionen!A16 -> Produktgruppe 12 | B21: =IF(#REF!="jährlich",1,IF(#REF!="halbjährlich",2,IF(#REF!="vierteljährlich",4,12))) ->  | C21: =IF(OR($B21=1,$B21=12),0,IF($B21=2,#REF!+6,IF($B21=4,#REF!+3))) -> 
A22: =Definitionen!A17 -> Produktgruppe 13 | B22: =IF(#REF!="jährlich",1,IF(#REF!="halbjährlich",2,IF(#REF!="vierteljährlich",4,12))) ->  | C22: =IF(OR($B22=1,$B22=12),0,IF($B22=2,#REF!+6,IF($B22=4,#REF!+3))) -> 
A23: =Definitionen!A18 -> Produktgruppe 14 | B23: =IF(#REF!="jährlich",1,IF(#REF!="halbjährlich",2,IF(#REF!="vierteljährlich",4,12))) ->  | C23: =IF(OR($B23=1,$B23=12),0,IF($B23=2,#REF!+6,IF($B23=4,#REF!+3))) -> 
A24: =Definitionen!A19 -> Produktgruppe 15 | B24: =IF(#REF!="jährlich",1,IF(#REF!="halbjährlich",2,IF(#REF!="vierteljährlich",4,12))) ->  | C24: =IF(OR($B24=1,$B24=12),0,IF($B24=2,#REF!+6,IF($B24=4,#REF!+3))) -> 
A25: =Definitionen!A20 -> Produktgruppe 16 | B25: =IF(#REF!="jährlich",1,IF(#REF!="halbjährlich",2,IF(#REF!="vierteljährlich",4,12))) ->  | C25: =IF(OR($B25=1,$B25=12),0,IF($B25=2,#REF!+6,IF($B25=4,#REF!+3))) -> 
A26: =Definitionen!A21 -> Produktgruppe 17 | B26: =IF(#REF!="jährlich",1,IF(#REF!="halbjährlich",2,IF(#REF!="vierteljährlich",4,12))) ->  | C26: =IF(OR($B26=1,$B26=12),0,IF($B26=2,#REF!+6,IF($B26=4,#REF!+3))) -> 
A27: =Definitionen!A22 -> Produktgruppe 18 | B27: =IF(#REF!="jährlich",1,IF(#REF!="halbjährlich",2,IF(#REF!="vierteljährlich",4,12))) ->  | C27: =IF(OR($B27=1,$B27=12),0,IF($B27=2,#REF!+6,IF($B27=4,#REF!+3))) -> 
A28: =Definitionen!A23 -> Produktgruppe 19 | B28: =IF(#REF!="jährlich",1,IF(#REF!="halbjährlich",2,IF(#REF!="vierteljährlich",4,12))) ->  | C28: =IF(OR($B28=1,$B28=12),0,IF($B28=2,#REF!+6,IF($B28=4,#REF!+3))) -> 
A29: =Definitionen!A24 -> Produktgruppe 20 | B29: =IF(#REF!="jährlich",1,IF(#REF!="halbjährlich",2,IF(#REF!="vierteljährlich",4,12))) ->  | C29: =IF(OR($B29=1,$B29=12),0,IF($B29=2,#REF!+6,IF($B29=4,#REF!+3))) -> 
A30: =Definitionen!A25 -> Produktgruppe 21 | B30: =IF(#REF!="jährlich",1,IF(#REF!="halbjährlich",2,IF(#REF!="vierteljährlich",4,12))) ->  | C30: =IF(OR($B30=1,$B30=12),0,IF($B30=2,#REF!+6,IF($B30=4,#REF!+3))) -> 
A31: =Definitionen!A26 -> Produktgruppe 22 | B31: =IF(#REF!="jährlich",1,IF(#REF!="halbjährlich",2,IF(#REF!="vierteljährlich",4,12))) ->  | C31: =IF(OR($B31=1,$B31=12),0,IF($B31=2,#REF!+6,IF($B31=4,#REF!+3))) -> 
A32: =Definitionen!A27 -> Produktgruppe 23 | B32: =IF(#REF!="jährlich",1,IF(#REF!="halbjährlich",2,IF(#REF!="vierteljährlich",4,12))) ->  | C32: =IF(OR($B32=1,$B32=12),0,IF($B32=2,#REF!+6,IF($B32=4,#REF!+3))) -> 
A33: =Definitionen!A28 -> Produktgruppe 24 | B33: =IF(#REF!="jährlich",1,IF(#REF!="halbjährlich",2,IF(#REF!="vierteljährlich",4,12))) ->  | C33: =IF(OR($B33=1,$B33=12),0,IF($B33=2,#REF!+6,IF($B33=4,#REF!+3))) -> 
A34: =Definitionen!A29 -> Produktgruppe 25 | B34: =IF(#REF!="jährlich",1,IF(#REF!="halbjährlich",2,IF(#REF!="vierteljährlich",4,12))) ->  | C34: =IF(OR($B34=1,$B34=12),0,IF($B34=2,#REF!+6,IF($B34=4,#REF!+3))) -> 
A35: =Definitionen!A30 -> Produktgruppe 26 | B35: =IF(#REF!="jährlich",1,IF(#REF!="halbjährlich",2,IF(#REF!="vierteljährlich",4,12))) ->  | C35: =IF(OR($B35=1,$B35=12),0,IF($B35=2,#REF!+6,IF($B35=4,#REF!+3))) -> 
A36: =Definitionen!A31 -> Produktgruppe 27 | B36: =IF(#REF!="jährlich",1,IF(#REF!="halbjährlich",2,IF(#REF!="vierteljährlich",4,12))) ->  | C36: =IF(OR($B36=1,$B36=12),0,IF($B36=2,#REF!+6,IF($B36=4,#REF!+3))) -> 
A37: =Definitionen!A32 -> Produktgruppe 28 | B37: =IF(#REF!="jährlich",1,IF(#REF!="halbjährlich",2,IF(#REF!="vierteljährlich",4,12))) ->  | C37: =IF(OR($B37=1,$B37=12),0,IF($B37=2,#REF!+6,IF($B37=4,#REF!+3))) -> 
A38: =Definitionen!A33 -> Produktgruppe 29 | B38: =IF(#REF!="jährlich",1,IF(#REF!="halbjährlich",2,IF(#REF!="vierteljährlich",4,12))) ->  | C38: =IF(OR($B38=1,$B38=12),0,IF($B38=2,#REF!+6,IF($B38=4,#REF!+3))) -> 
A39: =Definitionen!A34 -> Produktgruppe 30 | B39: =IF(#REF!="jährlich",1,IF(#REF!="halbjährlich",2,IF(#REF!="vierteljährlich",4,12))) ->  | C39: =IF(OR($B39=1,$B39=12),0,IF($B39=2,#REF!+6,IF($B39=4,#REF!+3))) -> 
A40: Gesamt | F40: =SUM(F10:F39) -> 19000 | G40: =SUM(G10:G39) -> 19000 | H40: 16000 | I40: 19000 | J40: 17000 | K40: 19000 | L40: 21000 | M40: 19000 | N40: 15000 | O40: =SUM(O10:O39) -> 19000 | P40: =SUM(P10:P39) -> 19000 | Q40: =SUM(Q10:Q39) -> 19000
A42: Geldeingang aus Planjahr | F42: =IF($J$4=3,0,IF($J$4=2,0,F40)) -> 19000 | G42: =IF($J$4=3,0,IF($J$4=2,F40,G40)) -> 19000 | H42: =IF($J$4=3,F40,IF($J$4=2,G40,H40)) -> 16000 | I42: =IF($J$4=3,G40,IF($J$4=2,H40,I40)) -> 19000 | J42: 17000 | K42: 19000 | L42: 21000 | M42: 19000 | N42: 15000 | O42: 19000 | P42: 19000 | Q42: 19000
A43: Geldeingang aus Vorjahren | F43: 6000
A44: Geldeingang, gesamt | F44: =SUM(F42:F43) -> 25000 | G44: =SUM(G42:G43) -> 19000 | H44: 16000 | I44: 19000 | J44: 17000 | K44: 19000 | L44: 21000 | M44: 19000 | N44: 15000 | O44: 19000 | P44: 19000 | Q44: 19000
F1248: jährlich | G1248: 1
F1249: halbjährlich | G1249: 2
A1250: =Definitionen!A5 -> Produktgruppe 1 | F1250: vierteljährlich | G1250: 3
A1251: =Definitionen!A6 -> Produktgruppe 2 | F1251: monatlich | G1251: 4
A1252: =Definitionen!A7 -> Produktgruppe 3 | G1252: 5
A1253: =Definitionen!A8 -> Produktgruppe 4 | G1253: 6
A1254: =Definitionen!A9 -> Produktgruppe 5 | G1254: 7
A1255: =Definitionen!A10 -> Produktgruppe 6 | G1255: 8
A1256: =Definitionen!A11 -> Produktgruppe 7 | G1256: 9
A1257: =Definitionen!A12 -> Produktgruppe 8 | G1257: 10
A1258: =Definitionen!A13 -> Produktgruppe 9 | G1258: 11
A1259: =Definitionen!A14 -> Produktgruppe 10 | G1259: 12
A1260: =Definitionen!A31 -> Produktgruppe 27
A1261: =Definitionen!A32 -> Produktgruppe 28
A1262: =Definitionen!A33 -> Produktgruppe 29
A1263: =Definitionen!A34 -> Produktgruppe 30
A1264: =Definitionen!#REF! -> 

Sheet Vermietung_Verpachtung
A1: Einnahmen aus Vermietung und Verpachtung
A3: Leistung | B3: Januar | C3: Februar | D3: März | E3: April | F3: Mai | G3: Juni | H3: Juli | I3: August | J3: September | K3: Oktober | L3: November | M3: Dezember | N3: ="Gesamt "&Startseite!H5 -> Gesamt 2021
A4: Objekt 1 | B4: 1000 | C4: 1000 | D4: 1000 | E4: 1000 | F4: 1000 | G4: 1000 | H4: 1000 | I4: 1000 | J4: 1000 | K4: 1000 | L4: 1000 | M4: 1000 | N4: =SUM(B4:M4) -> 12000
N5: =SUM(B5:M5) -> 0
N6: 0
N7: 0
N8: 0
N9: 0
N10: 0
N11: 0
N12: 0
N13: 0
N14: 0
N15: 0
N16: 0
N17: 0
N18: 0
A19: Gesamt | B19: =SUM(B4:B18) -> 1000 | C19: =SUM(C4:C18) -> 1000 | D19: 1000 | E19: 1000 | F19: 1000 | G19: 1000 | H19: 1000 | I19: 1000 | J19: 1000 | K19: 1000 | L19: 1000 | M19: 1000 | N19: 12000
A21: Start

Sheet Sachvermögen
A1: Veräußerung von Sachvermögen
A3: Objekt | B3: Januar | C3: Februar | D3: März | E3: April | F3: Mai | G3: Juni | H3: Juli | I3: August | J3: September | K3: Oktober | L3: November | M3: Dezember | N3: ="Gesamt "&Startseite!H5 -> Gesamt 2021
A4: Maschine 1 | L4: 5000 | N4: =SUM(B4:M4) -> 5000
N5: 0
N6: 0
N7: 0
N8: 0
N9: 0
N10: 0
N11: 0
N12: 0
N13: 0
N14: 0
N15: 0
N16: 0
N17: 0
N18: 0
A19: Gesamt | B19: =SUM(B4:B18) -> 0 | C19: 0 | D19: 0 | E19: 0 | F19: 0 | G19: 0 | H19: 0 | I19: 0 | J19: 0 | K19: 0 | L19: 5000 | M19: 0 | N19: 5000
A21: Start

Sheet SonstigeEinnahmen
A1: Weitere Einnahmen | O1: Start
A3: Leistung | B3: Januar | C3: Februar | D3: März | E3: April | F3: Mai | G3: Juni | H3: Juli | I3: August | J3: September | K3: Oktober | L3: November | M3: Dezember | N3: ="Gesamt "&Startseite!H5 -> Gesamt 2021
N4: =SUM(B4:M4) -> 0
N5: 0
N6: 0
N7: 0
N8: 0
N9: 0 | P9: Steuerrückzahlungen
N10: 0 | P10: Versicherungsleistungen
N11: 0
N12: 0
N13: 0
N14: 0
N15: 0
N16: 0
N17: 0
N18: 0
N19: 0
N20: 0
N21: 0
N22: 0
N23: 0
N24: 0
N25: 0
N26: 0
N27: 0
N28: 0
N29: 0
N30: 0
N31: 0
N32: 0
N33: 0
N34: 0
N35: 0
N36: 0
N37: 0
N38: 0
N39: 0
A40: Gesamt | B40: =SUM(B4:B39) -> 0 | C40: 0 | D40: 0 | E40: 0 | F40: 0 | G40: 0 | H40: 0 | I40: 0 | J40: 0 | K40: 0 | L40: 0 | M40: 0 | N40: 0

Sheet Personal
A1: Ausgabenplaner Personal | O1: Start
A2: Ausgaben | B2: Januar | C2: Februar | D2: März | E2: April | F2: Mai | G2: Juni | H2: Juli | I2: August | J2: September | K2: Oktober | L2: November | M2: Dezember | N2: ="Gesamt "&Startseite!H5 -> Gesamt 2021
A3: Angestellte
A4: Gehälter | B4: 8000 | C4: 8000 | D4: 8000 | E4: 8000 | F4: 8000 | G4: 8000 | H4: 8000 | I4: 8000 | J4: 8000 | K4: 8000 | L4: 8000 | M4: 8000 | N4: =SUM(B4:M4) -> 96000
A5: Sozialabgaben | N5: 0
A6: Sonderzahlungen | N6: 0
A7: Fort- und Weiterbildung | N7: 0
A8: Sonstiges | N8: 0
A9: Angestellte, gesamt | B9: =SUM(B4:B8) -> 8000 | C9: 8000 | D9: 8000 | E9: 8000 | F9: 8000 | G9: 8000 | H9: 8000 | I9: 8000 | J9: 8000 | K9: 8000 | L9: 8000 | M9: 8000 | N9: 96000
A10: Arbeiter
A11: Löhne | B11: 6000 | C11: 6000 | D11: 6000 | E11: 6000 | F11: 6000 | G11: 6000 | H11: 6000 | I11: 6000 | J11: 6000 | K11: 6000 | L11: 6000 | M11: 6000 | N11: =SUM(B11:M11) -> 72000
A12: Sozialabgaben | N12: 0
A13: Sonderzahlungen | N13: 0
A14: Fort- und Weiterbildung | N14: 0
A15: Sonstiges | N15: 0
A16: Arbeiter, gesamt | B16: =SUM(B11:B15) -> 6000 | C16: 6000 | D16: 6000 | E16: 6000 | F16: 6000 | G16: 6000 | H16: 6000 | I16: 6000 | J16: 6000 | K16: 6000 | L16: 6000 | M16: 6000 | N16: 72000
A17: Auszubildende
A18: Ausbildungsvergütung | N18: =SUM(B18:M18) -> 0
A19: Sozialabgaben | N19: 0
A20: Sonderzahlungen | N20: 0
A21: Fort- und Weiterbildung | N21: 0
A22: Sonstiges | N22: 0
A23: Auszubildende, gesamt | B23: =SUM(B18:B22) -> 0 | C23: 0 | D23: 0 | E23: 0 | F23: 0 | G23: 0 | H23: 0 | I23: 0 | J23: 0 | K23: 0 | L23: 0 | M23: 0 | N23: 0
A24: Freie Mitarbeiter
A25: Honorare | N25: =SUM(B25:M25) -> 0
A26: Sonstiges | N26: 0
N27: 0
N28: 0
N29: 0
A30: Freie Mitarbeiter, gesamt | B30: =SUM(B25:B29) -> 0 | C30: 0 | D30: 0 | E30: 0 | F30: 0 | G30: 0 | H30: 0 | I30: 0 | J30: 0 | K30: 0 | L30: 0 | M30: 0 | N30: 0
A31: Sonstige Personalkosten
A32: Unfallversicherung | N32: =SUM(B32:M32) -> 0
N33: 0
N34: 0
N35: 0
N36: 0
A37: Sonstige Personalkosten, gesamt | B37: =SUM(B32:B36) -> 0 | C37: 0 | D37: 0 | E37: 0 | F37: 0 | G37: 0 | H37: 0 | I37: 0 | J37: 0 | K37: 0 | L37: 0 | M37: 0 | N37: 0
A38: Weitere Ausgaben für Pesonl
A39: Bewirtung | N39: =SUM(B39:M39) -> 0
A40: Gebäude | N40: 0
N41: 0
N42: 0
N43: 0
N44: 0
N45: 0
N46: 0
N47: 0
N48: 0
A49: Weitere Ausgaben, gesamt | B49: =SUM(B39:B48) -> 0 | C49: 0 | D49: 0 | E49: 0 | F49: 0 | G49: 0 | H49: 0 | I49: 0 | J49: 0 | K49: 0 | L49: 0 | M49: 0 | N49: 0
A50: Personalkosten, gesamt | B50: =+B9+B16+B23+B30+B49 -> 14000 | C50: =+C9+C16+C23+C30+C49 -> 14000 | D50: 14000 | E50: 14000 | F50: 14000 | G50: 14000 | H50: 14000 | I50: 14000 | J50: 14000 | K50: 14000 | L50: 14000 | M50: 14000 | N50: 168000

Sheet Material
A1: Ausgabenplaner Material | O1: Start
A2: Ausgaben | B2: Januar | C2: Februar | D2: März | E2: April | F2: Mai | G2: Juni | H2: Juli | I2: August | J2: September | K2: Oktober | L2: November | M2: Dezember | N2: ="Gesamt "&Startseite!H5 -> Gesamt 2021
A3: Rohstoffe
N4: =SUM(B4:M4) -> 0
N5: 0
N6: 0
N7: 0
N8: 0
A9: Rohstoffe, gesamt | B9: =SUM(B4:B8) -> 0 | C9: 0 | D9: 0 | E9: 0 | F9: 0 | G9: 0 | H9: 0 | I9: 0 | J9: 0 | K9: 0 | L9: 0 | M9: 0 | N9: 0
A10: Hilfsstoffe
N11: =SUM(B11:M11) -> 0
N12: 0
N13: 0
N14: 0
N15: 0
A16: Hilfsstoffe, gesamt | B16: =SUM(B11:B15) -> 0 | C16: 0 | D16: 0 | E16: 0 | F16: 0 | G16: 0 | H16: 0 | I16: 0 | J16: 0 | K16: 0 | L16: 0 | M16: 0 | N16: 0
A17: Betriebsstoffe
N18: =SUM(B18:M18) -> 0
N19: 0
N20: 0
N21: 0
N22: 0
A23: Betriebsstoffe, gesamt | B23: =SUM(B18:B22) -> 0 | C23: 0 | D23: 0 | E23: 0 | F23: 0 | G23: 0 | H23: 0 | I23: 0 | J23: 0 | K23: 0 | L23: 0 | M23: 0 | N23: 0
A24: Zukaufteile
N25: =SUM(B25:M25) -> 0
N28: 0
N29: 0
N30: 0
N31: 0
A32: Zukaufteile, gesamt | B32: =SUM(B25:B31) -> 0 | C32: 0 | D32: 0 | E32: 0 | F32: 0 | G32: 0 | H32: 0 | I32: 0 | J32: 0 | K32: 0 | L32: 0 | M32: 0 | N32: 0
A33: Sonstige Personalkosten
A34: Unfallversicherung | N34: =SUM(B34:M34) -> 0
N35: 0
N36: 0
N37: 0
N38: 0
A39: Sonstige Personalkosten, gesamt | B39: =SUM(B34:B38) -> 0 | C39: 0 | D39: 0 | E39: 0 | F39: 0 | G39: 0 | H39: 0 | I39: 0 | J39: 0 | K39: 0 | L39: 0 | M39: 0 | N39: 0
A40: Weitere Ausgaben für Material
N41: =SUM(B41:M41) -> 0
N42: 0
N43: 0
N44: 0
N45: 0
N46: 0
N47: 0
N48: 0
N49: 0
N50: 0
A51: Weitere Ausgaben, gesamt | B51: =SUM(B41:B50) -> 0 | C51: 0 | D51: 0 | E51: 0 | F51: 0 | G51: 0 | H51: 0 | I51: 0 | J51: 0 | K51: 0 | L51: 0 | M51: 0 | N51: 0
A52: Materialkosten, gesamt | B52: =+B9+B16+B23+B32+B51 -> 0 | C52: 0 | D52: 0 | E52: 0 | F52: 0 | G52: 0 | H52: 0 | I52: 0 | J52: 0 | K52: 0 | L52: 0 | M52: 0 | N52: 0

Sheet Investitionsplan
A1: Investitionsplan | N1: Start
A3: Bezeichnung der Investition | B3: Januar | C3: Februar | D3: März | E3: April | F3: Mai | G3: Juni | H3: Juli | I3: August | J3: September | K3: Oktober | L3: November | M3: Dezember
B4: =SUM(#REF!) -> 
A5: Maschine | F5: 10000
A40: Gesamt | B40: =SUM(B5:B39) -> 0 | C40: =SUM(C5:C39) -> 0 | D40: 0 | E40: 0 | F40: 10000 | G40: 0 | H40: 0 | I40: 0 | J40: 0 | K40: 0 | L40: 0 | M40: 0
A1250: =Definitionen!A5 -> Produktgruppe 1
A1251: =Definitionen!A6 -> Produktgruppe 2
A1252: =Definitionen!A7 -> Produktgruppe 3
A1253: =Definitionen!A8 -> Produktgruppe 4
A1254: =Definitionen!A9 -> Produktgruppe 5
A1255: =Definitionen!A10 -> Produktgruppe 6
A1256: =Definitionen!A11 -> Produktgruppe 7
A1257: =Definitionen!A12 -> Produktgruppe 8
A1258: =Definitionen!A13 -> Produktgruppe 9
A1259: =Definitionen!A14 -> Produktgruppe 10
A1260: =Definitionen!A31 -> Produktgruppe 27
A1261: =Definitionen!A32 -> Produktgruppe 28
A1262: =Definitionen!A33 -> Produktgruppe 29
A1263: =Definitionen!A34 -> Produktgruppe 30
A1264: =Definitionen!#REF! -> 

Sheet Ausgaben
A1: Ausgabenplaner | O1: Start
A2: Ausgaben | B2: Januar | C2: Februar | D2: März | E2: April | F2: Mai | G2: Juni | H2: Juli | I2: August | J2: September | K2: Oktober | L2: November | M2: Dezember | N2: ="Gesamt "&Startseite!H5 -> Gesamt 2021
A3: =Definitionen!C5 -> Verwaltung
N4: =SUM(B4:M4) -> 0
N5: 0
N6: 0
N7: 0
N8: 0
A9: =A3&", gesamt" -> Verwaltung, gesamt | B9: =SUM(B4:B8) -> 0 | C9: =SUM(C4:C8) -> 0 | D9: 0 | E9: 0 | F9: 0 | G9: 0 | H9: 0 | I9: 0 | J9: 0 | K9: 0 | L9: 0 | M9: 0 | N9: 0
A10: =Definitionen!C6 -> Mieten / Pachten / Leasing
N11: 0
N12: 0
N13: 0
N14: 0
N15: 0
A16: =A10&", gesamt" -> Mieten / Pachten / Leasing, gesamt | B16: =SUM(B11:B15) -> 0 | C16: 0 | D16: 0 | E16: 0 | F16: 0 | G16: 0 | H16: 0 | I16: 0 | J16: 0 | K16: 0 | L16: 0 | M16: 0 | N16: =SUM(B16:M16) -> 0
A17: =Definitionen!C7 -> Fuhrpark
N18: =SUM(B18:M18) -> 0
N19: 0
N20: 0
N21: 0
N22: 0
A23: =A17&", gesamt" -> Fuhrpark, gesamt | B23: =SUM(B18:B22) -> 0 | C23: 0 | D23: 0 | E23: 0 | F23: 0 | G23: 0 | H23: 0 | I23: 0 | J23: 0 | K23: 0 | L23: 0 | M23: 0 | N23: 0
A24: =Definitionen!C8 -> Versicherungen
N25: =SUM(B25:M25) -> 0
N26: 0
N27: 0
N28: 0
N29: 0
A30: =A24&", gesamt" -> Versicherungen, gesamt | B30: =SUM(B25:B29) -> 0 | C30: 0 | D30: 0 | E30: 0 | F30: 0 | G30: 0 | H30: 0 | I30: 0 | J30: 0 | K30: 0 | L30: 0 | M30: 0 | N30: 0
A31: =Definitionen!C9 -> Steuern und Abgaben
N32: =SUM(B32:M32) -> 0
N33: 0
N34: 0
N35: 0
N36: 0
A37: =A31&", gesamt" -> Steuern und Abgaben, gesamt | B37: =SUM(B32:B36) -> 0 | C37: 0 | D37: 0 | E37: 0 | F37: 0 | G37: 0 | H37: 0 | I37: 0 | J37: 0 | K37: 0 | L37: 0 | M37: 0 | N37: 0
A38: Weitere Ausgaben
N39: =SUM(B39:M39) -> 0
N40: 0
N41: 0
N42: 0
N43: 0
N44: 0
N45: 0
N46: 0
N47: 0
N48: 0
A49: Weitere Ausgaben, gesamt | B49: =SUM(B39:B48) -> 0 | C49: =SUM(C39:C48) -> 0 | D49: 0 | E49: 0 | F49: 0 | G49: 0 | H49: 0 | I49: 0 | J49: 0 | K49: 0 | L49: 0 | M49: 0 | N49: 0

Sheet TabVorlage (hidden)
A1: Titel
